[Event "Chessable English Womens-ch 2022"]
[Site "Kenilwoth"]
[Date "2022.05.19"]
[Round "1.1"]
[White "Catabay, Mae Katelyn Rose"]
[Black "Yao, Lan"]
[Result "0-1"]
[ECO "B48"]
[WhiteElo "1321"]
[BlackElo "2276"]
[Annotator "TA"]
[PlyCount "58"]
[EventDate "2022.05.18"]
[EventType "swiss"]
[EventCountry "ENG"]
[SourceTitle "playchess.com"]
[Source "ChessBase"]
[SourceQuality "1"]
[TimeControl "5400+30"]

{[%evp 17,58,15,38,0,12,25,14,0,0,3,21,14,12,0,33,8,11,0,12,8,9,-14,-12,-50,0,-115,-117,-137,-131,-140,-96,-182,-187,-179,-170,-221,-221,-265,-250,-231,-173,-1014,-1014]} 1. e4 {[%emt 0:00:03]} c5 {[%emt 0:00:03]} 2. Nf3 {[%emt 0:00:10][%cal Bg1f3,Bf3d4,Bd4b5][%mdl 32]} e6 {[%emt 0:00:03]} 3. d4 {[%emt 0:00:17]} cxd4 {[%emt 0:00:04]} 4. Nxd4 {[%emt 0:00:24]} Nc6 {[%emt 0:00:05]} 5. Nc3 {[%emt 0:01:07]} Qc7 {[%emt 0:00:05]} 6. Ndb5 {[%emt 0:01:19]} Qb8 {[%emt 0:00:27]} 7. Be3 {[%emt 0:01:52]} a6 {[%emt 0:06:12]} 8. Nd4 {[%emt 0:03:23]} Nf6 {[%emt 0:00:45]} 9. a3 {[%emt 0:03:27]} Qc7 {[%emt 0:02:50]} 10. Bd3 {[%emt 0:06:44] B48: Sicilian: Taimanov: 5 Nc3 Qc7 6 Be3 a6 without Be2.} Nxd4 {[%emt 0:02:12]} 11. Bxd4 {[%emt 0:00:51]} Bc5 {[%emt 0:00:10] [#]} 12. Bc4 $146 {[%emt 0:05:11][%cal Bd3c4,Bc4b3,Bb3d5][%mdl 32] The position is equal.} ({Predecessor:} 12. Be2 d6 13. Qd2 b5 14. Rd1 Bb7 15. f3 O-O 16. Bxc5 dxc5 17. Qd6 Rfc8 18. Qxc7 Rxc7 19. Kf2 Kf8 20. Ke3 {½-½ (39) Lajthajm,B (2424)-Baglan,E (2336) Paracin 2019}) 12... b5 {[%emt 0:05:43]} 13. Bb3 {[%emt 0:02:41]} d6 {[%emt 0:08:25] Against e5} 14. Qd2 {[%emt 0:08:35]} Bb7 {[%emt 0:02:23]} 15. f3 {[%emt 0:07:30]} e5 {[%emt 0:10:25]} 16. Bxc5 {[%emt 0:05:39]} dxc5 {[%emt 0:00:52]} 17. Nd5 {[%emt 0:04:03]} Bxd5 {[%emt 0:00:36]} 18. Bxd5 {[%emt 0:00:24]} ({Of course not} 18. exd5 c4 19. d6 Qc6 $17) 18... Rd8 {[%emt 0:00:13]} 19. Rd1 {[%emt 0:00:20]} O-O {[%emt 0:01:03]} 20. Qe3 {[%emt 0:01:19]} Rd6 {[%emt 0:05:15]} (20... Nxd5 $15 21. exd5 Rd7) 21. f4 {[%emt 0:07:17]} (21. c4 $1 $11 {keeps the balance.}) 21... Nxd5 $17 {[%emt 0:01:07]} 22. exd5 {[%emt 0:07:48]} exf4 {[%emt 0:00:12][%cal Be5f4,Bf4f3,Bf3g2][%mdl 32]} 23. Qe4 {[%emt 0:03:13]} f3 {[%emt 0:21:10] ...fxg2 is the strong threat.} 24. O-O {[%emt 0:04:04]} (24. g3 $17) 24... fxg2 $19 {[%emt 0:00:20]} 25. Rf2 {[%emt 0:01:32]} Qd7 {[%emt 0:04:27]} 26. c4 {[%emt 0:10:04] [#]} (26. b3 $142) 26... Re8 $1 {[%emt 0:03:05]} 27. Qd3 {[%emt 0:05:46]} bxc4 {[%emt 0:02:25]} 28. Qxc4 {[%emt 0:00:44]} Re5 {[%emt 0:01:59]} 29. Qxc5 $2 {[%emt 0:07:03]} (29. Re2 Rxe2 30. Qxe2) 29... Rdxd5 {[%emt 0:01:31] Weighted Error Value: White=0.71/Black=0.12 (very precise)} 0-1

[Event "Chessable English Womens-ch 2022"]
[Site "Kenilwoth"]
[Date "2022.05.19"]
[Round "1.2"]
[White "Dicen, Elis Denele"]
[Black "Subramanian, Anusha"]
[Result "1/2-1/2"]
[ECO "A45"]
[WhiteElo "1635"]
[BlackElo "1671"]
[Annotator "NA COMBH"]
[PlyCount "94"]
[EventDate "2022.05.18"]
[EventType "swiss"]
[EventCountry "ENG"]
[SourceTitle "playchess.com"]
[Source "ChessBase"]
[SourceQuality "1"]
[TimeControl "5400+30"]

1. d4 {[%emt 0:00:04]} Nf6 {[%emt 0:00:06]} 2. Bg5 {[%emt 0:00:21]} Ne4 {[%emt 0:00:08]} 3. Bf4 {[%emt 0:00:41]} d5 {[%emt 0:00:08]} 4. f3 {[%emt 0:01:28]} Nf6 {[%emt 0:00:25]} 5. Nc3 {[%emt 0:01:15]} c6 {[%emt 0:01:27]} 6. e4 {[%emt 0:01:31]} dxe4 {[%emt 0:01:55]} 7. fxe4 {[%emt 0:01:04]} Bg4 {[%emt 0:04:31]} 8. Be2 {[%emt 0:03:49]} Bxe2 {[%emt 0:01:13]} 9. Ngxe2 {[%emt 0:00:47]} e6 {[%emt 0:01:23]} 10. Qd3 {[%emt 0:01:32]} a6 {[%emt 0:02:52]} 11. O-O-O {[%emt 0:05:29]} b5 {[%emt 0:03:53]} 12. Qf3 {[%emt 0:08:58]} Qa5 {[%emt 0:06:50]} 13. Bxb8 {[%emt 0:10:34]} Rxb8 {[%emt 0:01:39]} 14. e5 {[%emt 0:03:51]} Nd5 {[%emt 0:02:36]} 15. Rhf1 {[%emt 0:02:16]} Rb7 {[%emt 0:02:40]} 16. Nxd5 {[%emt 0:04:10]} cxd5 {[%emt 0:00:29]} 17. Qc3 {[%emt 0:01:49]} Qxc3 {[%emt 0:02:23]} 18. Nxc3 {[%emt 0:00:26]} Bb4 {[%emt 0:03:03]} 19. Rf3 {[%emt 0:00:48]} Rc7 {[%emt 0:02:09]} 20. Ne2 {[%emt 0:00:49]} O-O {[%emt 0:02:14]} 21. Kb1 {[%emt 0:01:12]} Rfc8 {[%emt 0:01:32]} 22. c3 {[%emt 0:00:47]} Bf8 {[%emt 0:01:37]} 23. Rdf1 {[%emt 0:02:06]} a5 {[%emt 0:02:56]} 24. g4 {[%emt 0:04:22]} b4 {[%emt 0:04:52]} 25. h3 {[%emt 0:04:05]} Rb8 {[%emt 0:04:20]} 26. Rc1 {[%emt 0:06:17]} bxc3 {[%emt 0:10:08]} 27. Rfxc3 {[%emt 0:03:26]} Rcb7 {[%emt 0:02:39]} 28. R1c2 {[%emt 0:01:34]} g6 {[%emt 0:05:17]} 29. Ng1 {[%emt 0:02:55]} Bb4 {[%emt 0:02:42]} 30. Rd3 {[%emt 0:02:28]} a4 {[%emt 0:01:59]} 31. Kc1 {[%emt 0:02:13]} Be7 {[%emt 0:01:43]} 32. Nf3 {[%emt 0:01:40]} h6 {[%emt 0:01:22]} 33. Rdc3 {[%emt 0:02:00]} Kg7 {[%emt 0:02:45]} 34. Rc6 {[%emt 0:02:12]} Rb4 {[%emt 0:02:57]} 35. R6c3 {[%emt 0:02:08]} R8b7 {[%emt 0:02:11]} 36. Rd3 {[%emt 0:00:42]} Bd8 {[%emt 0:02:05]} 37. Rd1 {[%emt 0:01:11]} Bb6 {[%emt 0:01:20]} 38. Rd3 {[%emt 0:01:39]} Bd8 {[%emt 0:03:12]} 39. Rd1 {[%emt 0:01:30]} Be7 {[%emt 0:02:54]} 40. Rd3 {[%emt 0:01:21]} Bg5+ {[%emt 0:00:55]} 41. Nxg5 {[%emt 0:01:13]} hxg5 {[%emt 0:00:07]} 42. Rdd2 {[%emt 0:00:43]} Rb8 {[%emt 0:00:41]} 43. Kd1 {[%emt 0:01:11]} Rh8 {[%emt 0:00:42]} 44. Rc3 {[%emt 0:00:50]} Rhb8 {[%emt 0:00:31]} 45. Rcc2 {[%emt 0:00:57]} Rh8 {[%emt 0:00:18]} 46. Rd3 {[%emt 0:00:47]} Rhb8 {[%emt 0:00:31]} 47. Kc1 {[%emt 0:00:53]} R8b7 {[%emt 0:01:02]} 1/2-1/2

[Event "Chessable English Womens-ch 2022"]
[Site "Kenilwoth"]
[Date "2022.05.19"]
[Round "1.3"]
[White "Sengenberger, Sara"]
[Black "Pert, Nina"]
[Result "0-1"]
[ECO "B13"]
[WhiteElo "1435"]
[BlackElo "1620"]
[Annotator "NA COMBH"]
[PlyCount "90"]
[EventDate "2022.05.18"]
[EventType "swiss"]
[EventCountry "ENG"]
[SourceTitle "playchess.com"]
[Source "ChessBase"]
[SourceQuality "1"]
[TimeControl "5400+30"]

1. e4 {[%emt 0:00:09]} c6 {[%emt 0:00:09]} 2. d4 {[%emt 0:00:07]} d5 {[%emt 0:00:10]} 3. exd5 {[%emt 0:00:13]} cxd5 {[%emt 0:00:10]} 4. Bd3 {[%emt 0:00:19]} Nc6 {[%emt 0:02:19]} 5. c3 {[%emt 0:00:17]} Qc7 {[%emt 0:00:52]} 6. Ne2 {[%emt 0:03:07]} Bg4 {[%emt 0:02:34]} 7. Qb3 {[%emt 0:03:37]} Bxe2 {[%emt 0:05:01]} 8. Bxe2 {[%emt 0:00:22]} Nxd4 {[%emt 0:07:37]} 9. cxd4 {[%emt 0:05:47]} Qxc1+ {[%emt 0:00:13]} 10. Bd1 {[%emt 0:04:48]} Qc6 {[%emt 0:02:36]} 11. O-O {[%emt 0:01:42]} e6 {[%emt 0:03:00]} 12. Be2 {[%emt 0:01:10]} a6 {[%emt 0:00:30]} 13. Nc3 {[%emt 0:05:20]} Qd7 {[%emt 0:09:54]} 14. Rac1 {[%emt 0:01:56]} Ne7 {[%emt 0:01:16]} 15. Bd3 {[%emt 0:10:46]} Nc6 {[%emt 0:03:41]} 16. Rfe1 {[%emt 0:04:54]} Be7 {[%emt 0:02:32]} 17. Ne2 {[%emt 0:02:14]} O-O {[%emt 0:01:14]} 18. a3 {[%emt 0:04:04]} Bf6 {[%emt 0:03:44]} 19. Bc2 {[%emt 0:11:11]} g6 {[%emt 0:01:54]} 20. Red1 {[%emt 0:01:53]} Bg7 {[%emt 0:04:07]} 21. Qe3 {[%emt 0:01:12]} Qd6 {[%emt 0:05:05]} 22. f4 {[%emt 0:02:16]} Rac8 {[%emt 0:01:58]} 23. b4 {[%emt 0:01:11]} Rc7 {[%emt 0:02:51]} 24. Ba4 {[%emt 0:03:33]} b5 {[%emt 0:01:19]} 25. Bb3 {[%emt 0:00:22]} Rfc8 {[%emt 0:00:53]} 26. Kf1 {[%emt 0:01:59]} a5 {[%emt 0:03:58]} 27. Qd2 {[%emt 0:05:35]} axb4 {[%emt 0:02:13]} 28. axb4 {[%emt 0:00:35]} Qxb4 {[%emt 0:04:08]} 29. Qd3 {[%emt 0:02:15]} Nxd4 {[%emt 0:05:46]} 30. Rxc7 {[%emt 0:00:55]} Rxc7 {[%emt 0:00:09]} 31. Nxd4 {[%emt 0:01:08]} Rc3 {[%emt 0:01:55]} 32. Qxb5 {[%emt 0:02:14]} Qxb5+ {[%emt 0:00:07]} 33. Nxb5 {[%emt 0:00:18]} Rxb3 {[%emt 0:00:04]} 34. Nd4 {[%emt 0:01:13]} Bxd4 {[%emt 0:01:59]} 35. Rxd4 {[%emt 0:00:03]} Kf8 {[%emt 0:00:23]} 36. Ke2 {[%emt 0:00:38]} Ke7 {[%emt 0:00:37]} 37. Ra4 {[%emt 0:01:02]} Kf6 {[%emt 0:02:10]} 38. g4 {[%emt 0:00:43]} Rb2+ {[%emt 0:00:16]} 39. Kf3 {[%emt 0:00:36]} Rxh2 {[%emt 0:00:06]} 40. Ra7 {[%emt 0:00:34]} h6 {[%emt 0:00:44]} 41. g5+ {[%emt 0:00:51]} hxg5 {[%emt 0:00:21]} 42. fxg5+ {[%emt 0:00:08]} Kg7 {[%emt 0:00:16]} 43. Rd7 {[%emt 0:00:25]} Rh3+ {[%emt 0:00:41]} 44. Kf4 {[%emt 0:00:27]} Rh4+ {[%emt 0:02:03]} 45. Kg3 {[%emt 0:00:57]} Ra4 {[%emt 0:00:12]} 0-1

[Event "Chessable English Womens-ch 2022"]
[Site "Kenilwoth"]
[Date "2022.05.19"]
[Round "1.4"]
[White "Gamal, Alaa"]
[Black "Oh, Julie"]
[Result "1-0"]
[ECO "A43"]
[WhiteElo "1651"]
[BlackElo "1373"]
[Annotator "NA COMBH"]
[PlyCount "133"]
[EventDate "2022.05.18"]
[EventType "swiss"]
[EventCountry "ENG"]
[SourceTitle "playchess.com"]
[Source "ChessBase"]
[SourceQuality "1"]
[TimeControl "5400+30"]

1. Nf3 {[%emt 0:00:08]} e6 {[%emt 0:00:50]} 2. d4 {[%emt 0:00:32]} c5 {[%emt 0:03:55]} 3. c4 {[%emt 0:01:35]} Qc7 {[%emt 0:08:25]} 4. d5 {[%emt 0:02:39]} d6 {[%emt 0:07:20]} 5. Nc3 {[%emt 0:02:10]} a6 {[%emt 0:06:20]} 6. e4 {[%emt 0:02:34]} e5 {[%emt 0:04:55]} 7. h3 {[%emt 0:00:47]} Nf6 {[%emt 0:03:22]} 8. Bg5 {[%emt 0:00:31]} Be7 {[%emt 0:03:28]} 9. Bxf6 {[%emt 0:01:09]} Bxf6 {[%emt 0:02:28]} 10. Be2 {[%emt 0:00:26]} O-O {[%emt 0:01:06]} 11. O-O {[%emt 0:03:32]} Bd8 {[%emt 0:05:24]} 12. Bd3 {[%emt 0:05:40]} Qe7 {[%emt 0:08:10]} 13. Qc2 {[%emt 0:03:38]} Nd7 {[%emt 0:03:23]} 14. Rab1 {[%emt 0:01:08]} Nf6 {[%emt 0:02:31]} 15. Qb3 {[%emt 0:32:50]} Nh5 {[%emt 0:03:34]} 16. Ne2 {[%emt 0:00:08]} Qf6 {[%emt 0:10:35]} 17. Bc2 {[%emt 0:05:16]} Qg6 {[%emt 0:05:06]} 18. Kh2 {[%emt 0:03:21]} Bg5 {[%emt 0:07:34]} 19. g3 {[%emt 0:06:35]} Nf6 {[%emt 0:04:15]} 20. Nxg5 {[%emt 0:14:35]} Qxg5 {[%emt 0:00:13]} 21. Qf3 {[%emt 0:03:43]} Qh6 {[%emt 0:01:27]} 22. Ng1 {[%emt 0:01:42]} g5 {[%emt 0:02:32]} 23. g4 {[%emt 0:05:10]} Nxg4+ {[%emt 0:01:56]} 24. Kg2 {[%emt 0:00:17]} Nf6 {[%emt 0:01:10]} 25. Ne2 {[%emt 0:00:59]} g4 {[%emt 0:01:14]} 26. hxg4 {[%emt 0:00:09]} Bxg4 {[%emt 0:00:44]} 27. Qg3 {[%emt 0:00:05]} Qg7 {[%emt 0:00:41]} 28. f3 {[%emt 0:00:51]} Bd7 {[%emt 0:00:36]} 29. Rh1 {[%emt 0:00:27]} Qxg3+ {[%emt 0:00:40]} 30. Nxg3 {[%emt 0:00:42]} Kg7 {[%emt 0:00:22]} 31. b4 {[%emt 0:00:13]} b5 {[%emt 0:00:55]} 32. bxc5 {[%emt 0:00:07]} dxc5 {[%emt 0:00:13]} 33. cxb5 {[%emt 0:00:10]} axb5 {[%emt 0:00:10]} 34. Rb2 {[%emt 0:00:24]} c4 {[%emt 0:00:36]} 35. Ne2 {[%emt 0:00:20]} Rfc8 {[%emt 0:00:37]} 36. Nc3 {[%emt 0:00:58]} Rcb8 {[%emt 0:00:45]} 37. Rhb1 {[%emt 0:00:30]} h5 {[%emt 0:00:33]} 38. a4 {[%emt 0:00:19]} Ra5 {[%emt 0:00:41]} 39. axb5 {[%emt 0:00:20]} h4 {[%emt 0:00:27]} 40. b6 {[%emt 0:01:28]} h3+ {[%emt 0:00:17]} 41. Kh2 {[%emt 0:00:06]} Ra3 {[%emt 0:00:41]} 42. Nd1 {[%emt 0:02:24]} Rxf3 {[%emt 0:00:16]} 43. Ba4 {[%emt 0:00:27]} Bxa4 {[%emt 0:00:41]} 44. Ra1 {[%emt 0:00:18]} Bxd1 {[%emt 0:00:23]} 45. Rxd1 {[%emt 0:00:06]} Rb3 {[%emt 0:00:30]} 46. Rg1+ {[%emt 0:00:21]} Kf8 {[%emt 0:00:20]} 47. Rc2 {[%emt 0:00:07]} R8xb6 {[%emt 0:00:24]} 48. Rxc4 {[%emt 0:00:03]} Rb8 {[%emt 0:00:55]} 49. Rg5 {[%emt 0:00:18]} Ra3 {[%emt 0:00:37]} 50. Rg3 {[%emt 0:02:05]} Rb2+ {[%emt 0:00:00]} 51. Kxh3 {[%emt 0:00:11]} Rxg3+ {[%emt 0:00:19]} 52. Kxg3 {[%emt 0:00:06]} Rd2 {[%emt 0:00:54]} 53. Kf3 {[%emt 0:01:17]} Rd3+ {[%emt 0:00:44]} 54. Kf2 {[%emt 0:00:33]} Ke7 {[%emt 0:00:36]} 55. Rc7+ {[%emt 0:00:12]} Kd6 {[%emt 0:00:29]} 56. Rc6+ {[%emt 0:00:53]} Ke7 {[%emt 0:00:16]} 57. Rc7+ {[%emt 0:00:13]} Kf8 {[%emt 0:00:14]} 58. Rc8+ {[%emt 0:00:13]} Kg7 {[%emt 0:00:23]} 59. Rc4 {[%emt 0:00:55]} Ng4+ {[%emt 0:01:04]} 60. Ke2 {[%emt 0:00:25]} Re3+ {[%emt 0:00:37]} 61. Kd2 {[%emt 0:00:19]} Rf3 {[%emt 0:00:33]} 62. d6 {[%emt 0:00:08]} Rf6 {[%emt 0:00:33]} 63. Rc6 {[%emt 0:00:19]} Nh6 {[%emt 0:00:17]} 64. d7 {[%emt 0:00:12]} Rxc6 {[%emt 0:00:34]} 65. d8=Q {[%emt 0:00:08]} Re6 {[%emt 0:00:26]} 66. Qg5+ {[%emt 0:00:17]} Kh7 {[%emt 0:00:31]} 67. Ke3 {[%emt 0:00:25]} 1-0

[Event "Chessable English Womens-ch 2022"]
[Site "Kenilwoth"]
[Date "2022.05.19"]
[Round "2.1"]
[White "Yao, Lan"]
[Black "Gamal, Alaa"]
[Result "0-1"]
[ECO "B08"]
[WhiteElo "2276"]
[BlackElo "1651"]
[Annotator "TA"]
[PlyCount "164"]
[EventDate "2022.05.18"]
[EventType "swiss"]
[EventCountry "ENG"]
[SourceTitle "playchess.com"]
[Source "ChessBase"]
[SourceQuality "1"]
[TimeControl "5400+30"]

{[%evp 11,163,23,28,29,28,5,113,101,100,24,27,26,47,16,38,-107,-111,-105,-112,-142,-136,-133,-133,-119,-57,-40,-46,-83,-20,-72,-91,-85,-54,-98,-35,-44,0,0,0,0,0,0,0,0,0,0,0,0,0,0,0,-19,0,0,0,7,0,-93,-93,-93,-93,-261,-263,-245,-247,-405,-397,-453,-419,-477,-392,-552,-552,-552,-547,-547,-539,-773,-735,-844,-832,-895,-874,-1017,-983,-1983,-1662,-1904,-1759,-29988,-5718,-5718,-4137,-2490,-2271,-29954,-29953,-29948,-1543,-29969,-1302,-29972,-29973,-29973,-29974,-29972,-29974,-29972,-29957,-29975,-29976,-29978,-29977,-29979,-29971,-29971,-29972,-29978,-29961,-29981,-29982,-29982,-29983,-29984,-29987,-29985,-29984,-29984,-29985,-29988,-29959,-29959,-29960,-29959,-29957,-29957,-29960,-29961,-29959,-29961,-29962,-29964,-29967,-29967,-29968,-29967,-29970,-29992,-29965,-29967,-29968,-29967,-11903,-29999]} 1. e4 {[%emt 0:00:02]} d6 {[%emt 0:00:22]} 2. d4 {[%emt 0:00:06]} Nf6 {[%emt 0:00:39]} 3. Nc3 {[%emt 0:00:09]} g6 {[%emt 0:00:31]} 4. Nf3 {[%emt 0:00:15]} Bg7 {[%emt 0:00:15]} 5. Be3 {[%emt 0:00:11]} O-O {[%emt 0:06:10]} 6. h3 {[%emt 0:00:11]} Nbd7 {[%emt 0:00:39]} 7. Be2 {[%emt 0:00:13] B08: Pirc Defence: Classical System.} c5 {[%emt 0:01:29]} 8. e5 {[%emt 0:05:18] [#]} dxe5 $146 {[%emt 0:06:03]} (8... Ne8 $1 $11) ({Predecessor:} 8... Ne8 9. e6 fxe6 10. dxc5 d5 11. Qd2 Qa5 12. Bd4 Bxd4 13. Qxd4 Qxc5 14. O-O-O Qxd4 15. Rxd4 {1-0 (36) Pretorius,W (1668)-Buthelezi,N (1574) Cape Town 2016}) 9. dxe5 $16 {[%emt 0:00:17] White is better.} Ne8 {[%emt 0:02:13]} 10. Bxc5 {[%emt 0:02:37]} Nc7 $11 {[%emt 0:03:22]} 11. Ba3 {[%emt 0:09:03]} b5 {[%emt 0:09:45]} 12. O-O {[%emt 0:13:01]} (12. Nxb5 $2 Nxb5 13. Bb4 Rb8 $19) 12... Rb8 {[%emt 0:00:17] ...b4 is the strong threat.} 13. Qd4 {[%emt 0:04:13] [#]} (13. Nd4 $14 {keeps the upper hand.} Nxe5 14. Ndxb5 (14. Ncxb5 Nxb5 15. Nxb5 Ba6 $11) 14... Nxb5 15. Bxb5 (15. Nxb5 Ba6 $11)) 13... a5 $1 $17 {[%emt 0:01:10]} 14. b4 {[%emt 0:14:52] [#]} Nxe5 $1 {[%emt 0:00:23][%mdl 512]} 15. Qxd8 {[%emt 0:09:13]} (15. Qe3 Nxf3+) 15... Nxf3+ {[%emt 0:00:18]} 16. Bxf3 {[%emt 0:00:05]} Rxd8 {[%emt 0:00:11]} 17. Rad1 {[%emt 0:00:29] [#]} Rxd1 {[%emt 0:08:20]} (17... Be6 $1 $17 18. Ne4 a4) 18. Nxd1 $15 {[%emt 0:00:03]} a4 {[%emt 0:08:23]} 19. Bc1 {[%emt 0:04:57]} e5 {[%emt 0:02:54]} ({Black should play} 19... Ne6 $17 20. Be4 Nd4) 20. Be3 {[%emt 0:02:34]} (20. Re1 $11) 20... Be6 $17 {[%emt 0:01:13]} 21. a3 {[%emt 0:01:27]} f5 {[%emt 0:01:28]} 22. Ba7 {[%emt 0:08:17]} Rf8 {[%emt 0:00:20]} (22... Rd8 $17 {Strongly threatening ...e4.} 23. Bb7 Rd2) 23. Be2 $15 {[%emt 0:02:45]} Rd8 {[%emt 0:07:53]} 24. Nc3 {[%emt 0:02:49]} Rd2 {[%emt 0:08:17]} 25. Nxb5 {[%emt 0:01:41]} Rxc2 {[%emt 0:03:20]} 26. Bd3 {[%emt 0:06:15]} Rc6 {[%emt 0:00:34] White must now prevent ...e4.} 27. Bc5 {[%emt 0:02:10]} e4 {[%emt 0:07:10]} 28. Be2 {[%emt 0:00:32]} Bb3 {[%emt 0:01:06]} 29. Na7 {[%emt 0:02:21]} Re6 {[%emt 0:00:54]} 30. b5 {[%emt 0:01:19]} Nd5 {[%emt 0:05:18] Inhibits b6.} 31. Rc1 {[%emt 0:03:07]} Bb2 {[%emt 0:02:16]} 32. Rb1 {[%emt 0:01:28]} Be5 {[%emt 0:01:34]} 33. Bd1 {[%emt 0:01:49]} ({Reject} 33. Nc6 Nc3 34. Re1 Nxe2+ 35. Rxe2 Bc4 $17) 33... Ba2 {[%emt 0:01:45]} 34. Bxa4 {[%emt 0:02:01]} Bxb1 $17 {[%emt 0:00:14] 0x0.001ab44b0f44dp-1022s more active pieces.} 35. Bb3 {[%emt 0:00:01] Prevents Ba2.} Nf4 {[%emt 0:00:36][%cal Og8g7] aiming for ...Kg7!} 36. Nc6 $2 {[%emt 0:01:10] [#] Loses the game.} (36. Be3 $17 {was called for.} Kg7 37. Bxf4 Bxf4 38. Bxe6) 36... Kg7 $1 $19 {[%emt 0:01:04] Threatens to win with ...Re8.} 37. Bxe6 {[%emt 0:00:41]} Nxe6 {[%emt 0:00:02]} 38. Ba7 {[%emt 0:00:10]} (38. Bb4 Bc7 39. Ba5) 38... Bd6 {[%emt 0:01:45]} 39. a4 {[%emt 0:00:42]} Bd3 {[%emt 0:00:23]} 40. b6 {[%emt 0:01:09]} Ba6 {[%emt 0:00:38]} 41. Na5 {[%emt 0:00:35]} (41. Bb8 $142 Bc5 42. Be5+ Kf7 43. Nb8) 41... Nc5 {[%emt 0:00:33]} 42. g3 {[%emt 0:00:10]} Kf7 {[%emt 0:00:24]} 43. Kg2 {[%emt 0:00:18]} Ke6 {[%emt 0:00:19]} 44. h4 {[%emt 0:00:23]} Kd5 {[%emt 0:01:07]} 45. Kh3 {[%emt 0:00:29]} h6 {[%emt 0:01:08][%cal Bh7h6,Bh6g5,Bg5f4,Bf4f3][%mdl 32]} 46. Kg2 {[%emt 0:00:03]} g5 {[%emt 0:00:15]} 47. hxg5 {[%emt 0:00:19]} hxg5 {[%emt 0:00:07] And now ...f4 would win.} 48. Kh3 {[%emt 0:00:45]} f4 {[%emt 0:00:15]} 49. gxf4 {[%emt 0:00:05]} gxf4 {[%emt 0:00:05] ( -> ...e3)} 50. Kg2 {[%emt 0:01:06]} Be5 {[%emt 0:02:42]} (50... f3+ $142 51. Kh3 e3 52. b7 exf2 53. Kh4 f1=Q 54. Bxc5 Qe1+ 55. Kh5 Qe5+ 56. Kh6 Qf6+ 57. Kh5 Bf4 58. Be7 Qxe7 59. Kg6 Bd3+ 60. Kh5 Qg5#) 51. b7 {[%emt 0:00:50]} Nxb7 {[%emt 0:00:39]} 52. Nb3 {[%emt 0:00:03]} f3+ {[%emt 0:00:45]} 53. Kg1 {[%emt 0:00:37]} Bc4 {[%emt 0:01:10]} 54. Nd2 {[%emt 0:00:23]} Bd3 {[%emt 0:00:49]} (54... Bd4 $142 55. Bxd4 Kxd4 56. Kh2 Bd3 57. Kg3 Kc3 58. Nxf3 exf3 59. Kxf3 Bc2 60. Kg4 Bxa4 61. Kh4 Kd4 62. Kh5 Ke5 63. Kg6 Nd6 64. Kh6 Kf6 65. Kh5 Bd1+ 66. f3 Bxf3+ 67. Kh6 Be4 68. Kh5 Bf5 69. Kh4 Nc4 70. Kg3 Kg5 71. Kf3 Bc2 72. Ke2 Kf4 73. Kf1 Bd1 74. Ke1 Bg4 75. Kf2 Nb2 76. Ke1 Ke3 77. Kf1 Nd3 78. Kg1 Kf3 79. Kh2 Kf2 80. Kh1 Ne5 81. Kh2 Nf3+ 82. Kh1 Nd2 83. Kh2 Nf1+ 84. Kh1 Bf3#) 55. Be3 {[%emt 0:00:15]} Bc3 {[%emt 0:00:17]} (55... Nc5 $142 56. a5 Bc3 57. Kh2 Bxa5 58. Kg3 Bb4 59. Nxf3 exf3 60. Kxf3 Ne6 61. Bb6 Bd2 62. Be3 Nd4+ 63. Kg4 Be1 64. Kf4 Nf5 65. Bb6 Bd2+ 66. Kg4 Nd4 67. Kh4 Ke4 68. Kh5 Be1 69. Kg6 Ke5+ 70. Kf7 Bxf2 71. Ke8 Ke6 72. Kf8 Bc4 73. Kg8 Ke5+ 74. Kh7 Bd3+ 75. Kg8 Bh4 76. Ba5 Nc6 77. Bc3+ Kf5 78. Kh7 Nd8 79. Kg7 Be2 80. Bd2 Ne6+ 81. Kh6 Be7 82. Kh7 Bd3 83. Be1 Kg5+ 84. Kg8 Kg6 85. Bc3 Ng5 86. Bg7 Be2 87. Kh8 Bc4 88. Bc3 Nf7+ 89. Kg8 Ne5+ 90. Kh8 Bf6#) 56. Kh2 {[%emt 0:00:31]} Nc5 {[%emt 0:00:39]} 57. Kg3 {[%emt 0:00:20]} Bxd2 {[%emt 0:00:31]} 58. Bxd2 {[%emt 0:00:02]} Nxa4 {[%emt 0:00:04]} 59. Kf4 {[%emt 0:00:10]} Nc5 {[%emt 0:00:14]} 60. Be3 {[%emt 0:00:38]} Ne6+ {[%emt 0:00:15]} 61. Kf5 {[%emt 0:00:25]} Nd4+ {[%emt 0:00:15]} 62. Kg4 {[%emt 0:00:29]} Nc2 {[%emt 0:00:08]} 63. Bb6 {[%emt 0:00:15]} Kc4 {[%emt 0:00:45]} 64. Kg3 {[%emt 0:00:10]} Be2 {[%emt 0:00:25]} 65. Ba7 {[%emt 0:00:26]} Kd3 {[%emt 0:00:14]} 66. Bb6 {[%emt 0:00:15]} Bf1 {[%emt 0:00:58]} 67. Bc5 {[%emt 0:01:50]} Bg2 {[%emt 0:00:05]} 68. Bb6 {[%emt 0:00:55]} Nd4 {[%emt 0:00:04]} 69. Bc5 {[%emt 0:00:33]} e3 {[%emt 0:00:52]} 70. fxe3 {[%emt 0:00:17]} Kxe3 {[%emt 0:00:20]} 71. Bb6 {[%emt 0:00:18]} Ke4 {[%emt 0:01:33]} 72. Kf2 {[%emt 0:00:04]} Ne2 {[%emt 0:00:33]} 73. Bc5 {[%emt 0:00:23]} Nf4 {[%emt 0:00:10]} 74. Bb6 {[%emt 0:00:21]} Nh3+ {[%emt 0:00:57]} 75. Kg3 {[%emt 0:00:15]} Kd3 {[%emt 0:00:16]} 76. Ba7 {[%emt 0:00:36]} Ke2 {[%emt 0:00:12]} 77. Bb6 {[%emt 0:00:15]} Ng5 {[%emt 0:00:12]} 78. Ba7 {[%emt 0:00:33]} Ne4+ {[%emt 0:00:06]} 79. Kh2 {[%emt 0:00:04]} Nc3 {[%emt 0:01:28]} ({Weaker is} 79... f2 80. Bxf2 Kf3 81. Bb6 $11) 80. Kg3 {[%emt 0:00:51]} Nd1 {[%emt 0:00:03]} 81. Bg1 {[%emt 0:00:15]} Ne3 {[%emt 0:00:41]} (81... Bh1 $142 82. Kf4 f2 83. Bxf2 Nxf2 84. Kg5 Nh3+ 85. Kh6 Be4 86. Kg7 Ke3 87. Kg8 Bd5+ 88. Kh7 Kd4 89. Kg7 Ke5 90. Kh6 Kf6 91. Kh7 Ng5+ 92. Kh8 Be4 93. Kg8 Ne6 94. Kh8 Nf8 95. Kg8 Ng6 96. Kh7 Bd5 97. Kh6 Bg8 98. Kh5 Ne5 99. Kh4 Kf5 100. Kg3 Ng4 101. Kf3 Bh7 102. Ke2 Ke5 103. Kd2 Kd4 104. Kc1 Kc3 105. Kd1 Be4 106. Kc1 Ne5 107. Kd1 Bc2+ 108. Ke2 Nf7 109. Ke3 Bd3 110. Kf4 Kd2 111. Kg3 Ke3 112. Kg4 Be4 113. Kh5 Kf4 114. Kh4 Bf3 115. Kh3 Nh6 116. Kh2 Ke3 117. Kg1 Ke2 118. Kh2 Kf2 119. Kh3 Nf5 120. Kh2 Bg4 121. Kh1 Ng3+ 122. Kh2 Nf1+ 123. Kh1 Bf3#) 82. Kh2 {[%emt 0:00:33]} Nf1# {[%emt 0:00:59] Weighted Error Value: White=0.45/Black=0.16 (very precise)} 0-1